fUSD/lending_fUSD_20241210
["ID","MTS","AMOUNT","RATE_DAILY","PERIOD"]
[344869309,1733847039095,-153.0,0.00010522,2]
[344869311,1733847039105,-153.0,0.00010522,2]
[344869313,1733847039114,-153.0,0.00010522,2]
[344869315,1733847039124,-153.0,0.00010522,2]
[344869317,1733847039133,-150.0,0.00010541,2]
[344869319,1733847039142,-153.0,0.00010547,2]
[344869321,1733847039152,-153.0,0.00010547,2]
[344869323,1733847039161,-153.0,0.00010547,2]
[344869325,1733847039171,-153.0,0.00010547,2]
[344869327,1733847039180,-153.0,0.00010547,2]
[344869329,1733847039189,-153.0,0.00010547,2]
[344869331,1733847039199,-153.0,0.00010547,2]
[344869333,1733847039211,-153.0,0.00010547,2]
[344869335,1733847039221,-153.0,0.00010547,2]
[344869338,1733847039231,-153.0,0.00010547,2]
[344869340,1733847039240,-153.0,0.00010547,2]
[344869342,1733847039249,-153.0,0.00010547,2]
[344869344,1733847039259,-153.0,0.00010547,2]
[344869345,1733847039269,-153.0,0.00010547,2]
[344869348,1733847039279,-153.0,0.00010547,2]
[344869350,1733847039289,-153.0,0.00010547,2]
[344869351,1733847039298,-153.0,0.00010547,2]
[344869353,1733847039308,-153.0,0.00010547,2]
[344869356,1733847039317,-153.0,0.00010547,2]
[344869358,1733847039327,-153.0,0.00010547,2]
[344869359,1733847039336,-153.0,0.00010547,2]
[344869361,1733847039345,-153.0,0.00010547,2]
[344869362,1733847039354,-153.0,0.00010547,2]
[344869363,1733847039363,-153.0,0.00010547,2]
[344869364,1733847039372,-153.0,0.00010547,2]
[344869365,1733847039381,-153.0,0.00010547,2]
[344869366,1733847039390,-153.0,0.00010547,2]
[344869367,1733847039399,-153.0,0.00010547,2]
[344869368,1733847039408,-153.0,0.00010547,2]
[344869369,1733847039417,-153.0,0.00010547,2]
[344869371,1733847039426,-153.0,0.00010547,2]
[344869373,1733847039435,-153.0,0.00010547,2]
[344869375,1733847039445,-153.0,0.00010547,2]
[344869377,1733847039454,-153.0,0.00010548,2]
[344869379,1733847039468,-153.0,0.00010548,2]
[344869381,1733847039477,-153.0,0.00010548,2]
[344869383,1733847039487,-153.0,0.00010548,2]
[344869385,1733847039497,-595.90473604,0.00010561,2]
[344869387,1733847039507,-595.90473604,0.00010561,2]
[344869389,1733847039516,-3900.0,0.000106,3]
[344869390,1733847039526,-150.0,0.00010634,2]
[344869393,1733847039536,-200.0,0.0001064,2]
[344869395,1733847039546,-4900.0,0.000107,3]
[344869396,1733847039555,-1000.0,0.00010724,2]
[344869398,1733847039566,-150.0,0.00010726,2]
[344869400,1733847039575,-1507.2143,0.00010758,2]
[344869402,1733847039584,-255.0,0.00010786,2]
[344869404,1733847039593,-420.0,0.00010786,2]
[344869406,1733847039603,-900.0,0.000108,3]
[344869408,1733847039613,-150.0,0.00010818,2]
[344869410,1733847039623,-155.52,0.00010836,2]
[344869412,1733847039633,-9829.07187322,0.00010856,2]
[344869414,1733847039643,-2392.35578196,0.00010858,2]
[344869416,1733847039662,-350.38642428,0.00010858,2]
[344869418,1733847039679,-2480.24609822,0.00010858,2]
[344869420,1733847039688,-209.90545003,0.00010858,2]
[344869422,1733847039699,-500.0,0.00010858,2]
[344869424,1733847039712,-381.3114,0.00010858,2]
[344869426,1733847039721,-18666.7897,0.00010858,2]
[344869428,1733847039730,-2094.8327,0.00010858,2]
[344869430,1733847039740,-5000.0,0.00010858,2]
[344869432,1733847039748,-325.08723233,0.000109,2]
[344869434,1733847039757,-325.08723233,0.000109,2]
[344869436,1733847039767,-325.08723233,0.000109,2]
[344869438,1733847039776,-325.08723233,0.000109,2]
[344869440,1733847039786,-325.08723233,0.000109,2]
[344869442,1733847039795,-325.08723233,0.000109,2]
[344869444,1733847039805,-900.0,0.000109,3]
[344869446,1733847039815,-325.08723233,0.000109,2]
[344869447,1733847039824,-325.08723233,0.000109,2]
[344869449,1733847039833,-325.08723233,0.000109,2]
[344869451,1733847039842,-325.08723233,0.000109,2]
[344869453,1733847039851,-325.08723233,0.000109,2]
[344869455,1733847039860,-325.08723233,0.000109,2]
[344869457,1733847039870,-150.0,0.00010911,2]
[344869459,1733847039880,-350.38642427,0.00010929,2]
[344869461,1733847039890,-2480.24609822,0.00010929,2]
[344869463,1733847039900,-1434.0,0.00010932,2]
[344869465,1733847039910,-270.0,0.00010932,2]
[344869467,1733847039920,-3137.0,0.00010932,2]
[344869469,1733847039929,-4689.0,0.00010932,2]
[344869471,1733847039938,-167.35774941,0.00010948,2]
[344869473,1733847039947,-167.35774941,0.00010948,2]
[344869475,1733847039956,-316.8901031,0.00010949,2]
[344869477,1733847039971,-3231.7754909,0.00010949,2]
[344869479,1733847039980,-570.0035436,0.00010949,2]
[344869481,1733847039988,-812.3576414,0.00010949,2]
[344869483,1733847039998,-245.0921386,0.00010949,2]
[344869485,1733847040008,-358.4687779,0.00010951,2]
[344869487,1733847040017,-3655.8119032,0.00010951,2]
[344869488,1733847040027,-644.7928532,0.00010951,2]
[344869491,1733847040036,-1115.2025612,0.00010951,2]
[344869493,1733847040046,-245.0921386,0.00010951,2]
[344869494,1733847040056,-1000.0,0.00010957,5]
[344869496,1733847040065,-500.0,0.00010957,2]
[344869499,1733847040075,-25515.12246115,0.00010957,2]
[344869500,1733847040084,-500.0,0.00010957,2]
[344869503,1733847040094,-185.18939797,0.00010957,2]
[344869505,1733847040105,-273.75444934,0.00010957,2]
[344869507,1733847040114,-666.0,0.00010957,2]
[344869509,1733847040123,-636.316,0.00010958,2]
[344869511,1733847040133,-2005.0,0.00010958,2]
[344869513,1733847040142,-150.0,0.00010958,2]
[344869515,1733847040152,-1894.0,0.00010958,2]
[344869517,1733847040161,-596.962,0.00010958,2]
[344869519,1733847040170,-1253.0,0.00010958,2]
[344869521,1733847040179,-817.0,0.00010958,2]
[344869522,1733847040189,-3763.0,0.00010958,2]
[344869524,1733847040198,-3595.0,0.00010958,2]
[344869526,1733847040211,-932.0,0.00010958,2]
[344869528,1733847040220,-670.623,0.00010958,2]
[344869530,1733847040230,-1886.0,0.00010958,2]
[344869532,1733847040239,-637.4264492,0.00010958,2]
[344869534,1733847040250,-757.55,0.00010958,2]
[344869536,1733847040260,-757.55,0.00010958,2]
[344869538,1733847040270,-757.55,0.00010958,2]
[344869540,1733847040281,-757.55,0.00010958,2]
[344869542,1733847040291,-757.55,0.00010958,2]
[344869544,1733847040301,-757.55,0.00010958,2]
[344869546,1733847040311,-757.55,0.00010958,2]
[344869549,1733847040322,-757.55,0.00010958,2]
[344869551,1733847040331,-757.55,0.00010958,2]
[344869553,1733847040340,-757.55,0.00010958,2]
[344869555,1733847040350,-757.55,0.00010958,2]
[344869557,1733847040360,-757.55,0.00010958,2]
[344869559,1733847040369,-757.55,0.00010958,2]
[344869561,1733847040378,-757.55,0.00010958,2]
[344869563,1733847040387,-757.55,0.00010958,2]
[344869565,1733847040397,-757.55,0.00010958,2]
[344869567,1733847040407,-757.55,0.00010958,2]
[344869569,1733847040416,-757.55,0.00010958,2]
[344869571,1733847040425,-757.55,0.00010958,2]
[344869573,1733847040434,-757.55,0.00010958,2]
[344869574,1733847040443,-757.55,0.00010958,2]
[344869577,1733847040453,-757.55,0.00010958,2]
[344869578,1733847040468,-757.55,0.00010958,2]
[344869580,1733847040478,-757.71875867,0.00010958,2]
[344869582,1733847040488,-180.388758,0.00010958,2]
[344869584,1733847040497,-161.957535,0.00010958,2]
[344869586,1733847040508,-150.244405,0.00010958,2]
[344869588,1733847040517,-150.389809,0.00010958,2]
[344869590,1733847040527,-191.476286,0.00010958,2]
[344869592,1733847040537,-191.476286,0.00010958,2]
[344869594,1733847040546,-393.104611,0.00010958,2]
[344869597,1733847040556,-393.104611,0.00010958,2]
[344869598,1733847040566,-393.104611,0.00010958,2]
[344869599,1733847040575,-393.104611,0.00010958,2]
[344869601,1733847040585,-393.104611,0.00010958,2]
[344869603,1733847040595,-393.104611,0.00010958,2]
[344869605,1733847040604,-393.104611,0.00010958,2]
[344869607,1733847040614,-393.104611,0.00010958,2]
[344869609,1733847040624,-393.104611,0.00010958,2]
[344869610,1733847040633,-393.104611,0.00010958,2]
[344869611,1733847040643,-393.104611,0.00010958,2]
[344869612,1733847040655,-393.104611,0.00010958,2]
[344869613,1733847040665,-393.104611,0.00010958,2]
[344869614,1733847040675,-393.104611,0.00010958,2]
[344869615,1733847040685,-393.104611,0.00010958,2]
[344869617,1733847040697,-393.104611,0.00010958,2]
[344869618,1733847040708,-393.104611,0.00010958,2]
[344869620,1733847040725,-1804.408635,0.00010958,2]
[344869622,1733847040734,-393.104611,0.00010958,2]
[344869624,1733847040745,-1804.408635,0.00010958,2]
[344869626,1733847040754,-393.104611,0.00010958,2]
[344869628,1733847040763,-393.104611,0.00010958,2]
[344869630,1733847040772,-1804.408635,0.00010958,2]
[344869632,1733847040782,-393.104611,0.00010958,2]
[344869634,1733847040792,-1804.408635,0.00010958,2]
[344869636,1733847040802,-393.104611,0.00010958,2]
[344869638,1733847040812,-1804.408635,0.00010958,2]
[344869640,1733847040821,-1804.408635,0.00010958,2]
[344869642,1733847040831,-393.104611,0.00010958,2]
[344869659,1733847040987,-1804.408635,0.00010958,2]
[344869661,1733847040997,-393.104611,0.00010958,2]
[344869664,1733847041010,-1804.408635,0.00010958,2]
[344869666,1733847041021,-1804.408635,0.00010958,2]
[344869668,1733847041031,-1804.408635,0.00010958,2]
[344869670,1733847041040,-1804.408635,0.00010958,2]
[344869672,1733847041050,-1804.408635,0.00010958,2]
[344869674,1733847041059,-1804.408635,0.00010958,2]
[344869676,1733847041068,-1804.408635,0.00010958,2]
[344869678,1733847041078,-1804.408635,0.00010958,2]
[344869680,1733847041087,-1804.408635,0.00010958,2]
[344869682,1733847041097,-1804.408635,0.00010958,2]
[344869684,1733847041106,-1804.408635,0.00010958,2]
[344869686,1733847041115,-1804.408635,0.00010958,2]
[344869687,1733847041125,-1804.408635,0.00010958,2]
[344869689,1733847041134,-1804.408635,0.00010958,2]
[344869691,1733847041144,-1804.408635,0.00010958,2]
[344869693,1733847041153,-1804.408635,0.00010958,2]
[344869695,1733847041163,-1804.408635,0.00010958,2]
[344869697,1733847041172,-159.791776,0.00010958,2]
[344869699,1733847041182,-476.909026,0.00010958,2]
[344869701,1733847041191,-476.909026,0.00010958,2]
[344869703,1733847041200,-476.909026,0.00010958,2]
[344869706,1733847041215,-476.909026,0.00010958,2]
[344869708,1733847041224,-476.909026,0.00010958,2]
[344869710,1733847041234,-476.909026,0.00010958,2]
[344869712,1733847041243,-476.909026,0.00010958,2]
[344869714,1733847041253,-476.909026,0.00010958,2]
[344869715,1733847041263,-476.909026,0.00010958,2]
[344869717,1733847041273,-476.909026,0.00010958,2]
[344869720,1733847041283,-476.909026,0.00010958,2]
[344869722,1733847041293,-476.909026,0.00010958,2]
[344869724,1733847041303,-476.909026,0.00010958,2]
[344869726,1733847041313,-476.909026,0.00010958,2]
[344869728,1733847041323,-476.909026,0.00010958,2]
[344869729,1733847041337,-476.909026,0.00010958,2]
[344869732,1733847041346,-476.909026,0.00010958,2]
[344869733,1733847041355,-476.909026,0.00010958,2]
[344869736,1733847041365,-476.909026,0.00010958,2]
[344869737,1733847041375,-476.909026,0.00010958,2]
[344869740,1733847041384,-476.909026,0.00010958,2]
[344869742,1733847041395,-476.909026,0.00010958,2]
[344869744,1733847041406,-476.909026,0.00010958,2]
[344869746,1733847041416,-476.909026,0.00010958,2]
[344869748,1733847041425,-500.0,0.00010958,2]
[344869750,1733847041435,-500.0,0.00010958,2]
[344869752,1733847041445,-500.0,0.00010958,2]
[344869753,1733847041454,-151.34838615,0.00010958,2]
[344869756,1733847041469,-500.0,0.00010958,2]
[344869757,1733847041479,-539.52672696,0.00010958,2]
[344869760,1733847041489,-500.0,0.00010958,2]
[344869762,1733847041499,-500.0,0.00010958,2]
[344869763,1733847041508,-502.62073221,0.00010958,2]
[344869766,1733847041518,-500.0,0.00010958,2]
[344869767,1733847041528,-500.0,0.00010958,2]
[344869769,1733847041538,-500.0,0.00010958,2]
[344869771,1733847041547,-500.0,0.00010958,2]
[344869773,1733847041557,-248.71961877,0.00010958,2]
[344869775,1733847041566,-500.0,0.00010958,2]
[344869778,1733847041577,-500.0,0.00010958,2]
[344869780,1733847041586,-157.95754089,0.00010958,2]
[344869782,1733847041596,-500.0,0.00010958,2]
[344869784,1733847041606,-500.0,0.00010958,2]
[344869786,1733847041615,-502.46732222,0.00010958,2]
[344869788,1733847041625,-500.69043139,0.00010958,2]
[344869790,1733847041635,-418.94214029,0.00010958,2]
[344869792,1733847041644,-545.46430334,0.00010958,2]
[344869794,1733847041657,-2629.93,0.00010958,2]
[344869796,1733847041666,-2629.93,0.00010958,2]
[344869798,1733847041676,-911.26463049,0.00010958,2]
[344869810,1733847041854,-749.99461503,0.00010958,2]
[344869812,1733847041870,-968.67075448,0.00010958,2]
[344869814,1733847041880,-2629.93,0.00010958,2]
[344869816,1733847041889,-2629.93,0.00010958,2]
[344869818,1733847041898,-2629.93,0.00010958,2]
[344869820,1733847041910,-2629.93,0.00010958,2]
[344869822,1733847041919,-2629.93,0.00010958,2]
[344869824,1733847041929,-117.53124347,0.00010958,2]
[344870026,1733847043829,-209.90545001,0.00010929,2]
[344870027,1733847043839,-149.17455,0.00010958,2]
[344870029,1733847043850,-313.83788142,0.00010958,2]
[344870032,1733847043862,-2049.38632511,0.00010958,2]
[344870034,1733847043871,-2629.93,0.00010958,2]
[344870036,1733847043880,-2629.93,0.00010958,2]
[344870038,1733847043890,-2629.93,0.00010958,2]
[344870040,1733847043899,-2629.93,0.00010958,2]
[344870041,1733847043908,-2629.93,0.00010958,2]
[344870043,1733847043918,-2629.93,0.00010958,2]
[344870044,1733847043927,-2.69244484,0.00010958,2]
[344870047,1733847043945,-1056.42085926,0.00010958,2]
[344870048,1733847043956,-498.44843116,0.00010958,2]
[344870051,1733847043981,-1072.36826474,0.00010958,2]
[344870052,1733847043990,-533.86120726,0.00010958,2]
[344870055,1733847044019,-2096.06879274,0.00010958,2]
[344870057,1733847044029,-2629.93,0.00010958,2]
[344870058,1733847044038,-2629.93,0.00010958,2]
[344870060,1733847044048,-2629.93,0.00010958,2]
[344870062,1733847044057,-2629.93,0.00010958,2]
[344870063,1733847044067,-2629.93,0.00010958,2]
[344870065,1733847044076,-2629.93,0.00010958,2]
[344870067,1733847044086,-2629.95956444,0.00010958,2]
[344870069,1733847044096,-500.0,0.00010958,2]
[344870071,1733847044106,-322.94261411,0.00010958,2]
[344870072,1733847044115,-500.0,0.00010958,2]
[344870073,1733847044125,-500.0,0.00010958,2]
[344870074,1733847044134,-500.0,0.00010958,2]
[344870075,1733847044145,-500.0,0.00010958,2]
[344870076,1733847044154,-500.0,0.00010958,2]
[344870077,1733847044164,-500.0,0.00010958,2]
[344870078,1733847044173,-626.93,0.00010958,2]
[344870079,1733847044181,-500.0,0.00010958,2]
[344870080,1733847044190,-500.0,0.00010958,2]
[344870081,1733847044199,-500.0,0.00010958,2]
[344870082,1733847044208,-500.0,0.00010958,2]
[344870083,1733847044223,-500.0,0.00010958,2]
[344870085,1733847044232,-500.0,0.00010958,2]
[344870086,1733847044242,-500.0,0.00010958,2]
[344870088,1733847044251,-500.0,0.00010958,2]
[344870089,1733847044260,-500.0,0.00010958,2]
[344870091,1733847044270,-500.0,0.00010958,2]
[344870093,1733847044280,-500.0,0.00010958,2]
[344870096,1733847044290,-500.0,0.00010958,2]
[344870097,1733847044300,-500.0,0.00010958,2]
[344870100,1733847044310,-500.0,0.00010958,2]
[344870102,1733847044320,-500.0,0.00010958,2]
[344870104,1733847044329,-500.0,0.00010958,2]
[344870106,1733847044339,-500.0,0.00010958,2]
[344870108,1733847044348,-500.0,0.00010958,2]
[344870110,1733847044358,-412.95,0.00010958,2]
[344870112,1733847044368,-500.0,0.00010958,2]
[344870114,1733847044377,-500.0,0.00010958,2]
[344870116,1733847044387,-500.0,0.00010958,2]
[344870118,1733847044396,-507.43639206,0.00010958,2]
[344870120,1733847044406,-500.0,0.00010958,2]
[344870122,1733847044416,-500.0,0.00010958,2]
[344870124,1733847044427,-500.0,0.00010958,2]
[344870126,1733847044437,-512.3929581,0.00010958,2]
[344870128,1733847044446,-421.12674823,0.00010958,2]
[344870130,1733847044455,-500.0,0.00010958,2]
[344870132,1733847044466,-500.0,0.00010958,2]
[344870134,1733847044475,-500.0,0.00010958,2]
[344870136,1733847044485,-500.0,0.00010958,2]
[344870138,1733847044494,-500.0,0.00010958,2]
[344870140,1733847044503,-500.0,0.00010958,2]
[344870142,1733847044512,-500.0,0.00010958,2]
[344870144,1733847044522,-500.0,0.00010958,2]
[344870146,1733847044532,-150.0,0.00010958,2]
[344870148,1733847044541,-150.0,0.00010958,2]
[344870150,1733847044552,-449.0,0.00010958,2]
[344870152,1733847044562,-500.0,0.00010958,2]
[344870154,1733847044572,-500.0,0.00010958,2]
[344870156,1733847044581,-500.0,0.00010958,2]
[344870158,1733847044592,-500.0,0.00010958,2]
[344870160,1733847044601,-500.0,0.00010958,2]
[344870162,1733847044611,-471.11369262,0.00010958,2]
[344870164,1733847044620,-500.0,0.00010958,2]
[344870166,1733847044630,-553.47531198,0.00010958,2]
[344870168,1733847044640,-307.02392572,0.00010958,2]
[344870174,1733847044703,-195.2305089,0.00010958,2]
[344870176,1733847044715,-5000.0,0.00010958,2]
[344870179,1733847044724,-5000.0,0.00010958,2]
[344870180,1733847044733,-2658.2697661,0.00010958,2]
[344870183,1733847044747,-289.91119968,0.00010958,2]
[344870186,1733847044765,-861.59236663,0.00010958,2]
[344870188,1733847044777,-1190.22666759,0.00010958,2]
[344870190,1733847044786,-2010.94646774,0.00010958,2]
[344870202,1733847044891,-277.44300925,0.00010958,2]
[344870204,1733847044904,-2711.61052301,0.00010958,2]
[344870206,1733847044914,-500.0,0.00010958,2]
[344870208,1733847044924,-5000.0,0.00010958,2]
[344870210,1733847044933,-500.0,0.00010958,2]
[344870212,1733847044943,-500.0,0.00010958,2]
[344870214,1733847044952,-500.0,0.00010958,2]
[344870216,1733847044961,-500.0,0.00010958,2]
[344870218,1733847044974,-500.0,0.00010958,2]
[344870220,1733847044983,-500.0,0.00010958,2]
[344870222,1733847044992,-500.0,0.00010958,2]
[344870224,1733847045002,-500.0,0.00010958,2]
[344870226,1733847045012,-500.0,0.00010958,2]
[344870228,1733847045021,-500.0,0.00010958,2]
[344870230,1733847045031,-500.0,0.00010958,2]
[344870232,1733847045040,-500.0,0.00010958,2]
[344870234,1733847045050,-500.0,0.00010958,2]
[344870236,1733847045059,-587.75194154,0.00010958,2]
[344870238,1733847045069,-500.0,0.00010958,2]
[344870240,1733847045078,-500.0,0.00010958,2]
[344870243,1733847045091,-500.0,0.00010958,2]
[344870245,1733847045100,-500.0,0.00010958,2]
[344870247,1733847045109,-500.0,0.00010958,2]
[344870249,1733847045119,-97.91831741,0.00010958,2]
[344870253,1733847045148,-387.34135,0.00010958,2]
[344870255,1733847045160,-14.74033259,0.00010958,2]
[344870257,1733847045170,-500.0,0.00010958,2]
[344870274,1733847045327,-500.0,0.00010958,2]
[344870276,1733847045337,-500.0,0.00010958,2]
[344870278,1733847045347,-500.0,0.00010958,2]
[344870280,1733847045357,-500.0,0.00010958,2]
[344870282,1733847045367,-500.0,0.00010958,2]
[344870284,1733847045377,-500.0,0.00010958,2]
[344870286,1733847045388,-500.0,0.00010958,2]
[344870288,1733847045404,-500.0,0.00010958,2]
[344870290,1733847045413,-500.0,0.00010958,2]
[344870292,1733847045422,-500.0,0.00010958,2]
[344870294,1733847045431,-501.11430844,0.00010958,2]
[344870296,1733847045441,-500.0,0.00010958,2]
[344870298,1733847045450,-500.0,0.00010958,2]
[344870300,1733847045459,-500.0,0.00010958,2]
[344870302,1733847045477,-500.0,0.00010958,2]
[344870304,1733847045486,-500.0,0.00010958,2]
[344870306,1733847045495,-500.0,0.00010958,2]
[344870308,1733847045504,-500.0,0.00010958,2]
[344870310,1733847045514,-500.0,0.00010958,2]
[344870312,1733847045523,-500.0,0.00010958,2]
[344870314,1733847045532,-500.0,0.00010958,2]
[344870316,1733847045541,-500.0,0.00010958,2]
[344870318,1733847045550,-500.0,0.00010958,2]
[344870320,1733847045560,-157.36992421,0.00010958,2]
[344870333,1733847045678,-342.63007579,0.00010958,2]
[344870335,1733847045688,-500.0,0.00010958,2]
[344870337,1733847045699,-500.0,0.00010958,2]
[344870339,1733847045709,-27.34482921,0.00010958,2]
[344870342,1733847045728,-472.65517079,0.00010958,2]
[344870344,1733847045737,-276.17823132,0.00010958,2]
[344870346,1733847045752,-223.82176868,0.00010958,2]
[344870348,1733847045761,-500.0,0.00010958,2]
[344870350,1733847045772,-201.45344977,0.00010958,2]
[344870352,1733847045781,-500.0,0.00010958,2]
[344870353,1733847045791,-500.0,0.00010958,2]
[344870354,1733847045800,-500.0,0.00010958,2]
[344870355,1733847045809,-500.0,0.00010958,2]
[344870357,1733847045819,-500.0,0.00010958,2]
[344870358,1733847045828,-223.72823697,0.00010958,2]
[344870359,1733847045837,-364.59174613,0.00010958,2]
[344870360,1733847045846,-501.41131447,0.00010958,2]
[344870362,1733847045855,-500.0,0.00010958,2]
[344870364,1733847045864,-500.0,0.00010958,2]
[344870367,1733847045873,-500.0,0.00010958,2]
[344870369,1733847045883,-500.0,0.00010958,2]
[344870371,1733847045892,-500.0,0.00010958,2]
[344870373,1733847045901,-500.94927248,0.00010958,2]
[344870375,1733847045911,-500.0,0.00010958,2]
[344870378,1733847045920,-500.0,0.00010958,2]
[344870380,1733847045930,-1086.7442115,0.00010958,2]
[344870397,1733847046031,-36.9757885,0.00010958,2]
[344870399,1733847046040,-617.90425786,0.00010958,2]
[344870401,1733847046050,-1123.72,0.00010958,2]
[344870403,1733847046059,-1123.72,0.00010958,2]
[344870405,1733847046068,-1123.72,0.00010958,2]
[344870407,1733847046078,-1123.72,0.00010958,2]
[344870409,1733847046087,-1123.72,0.00010958,2]
[344870411,1733847046097,-1123.72,0.00010958,2]
[344870413,1733847046106,-500.5012665,0.00010958,2]
[344870415,1733847046116,-1123.72,0.00010958,2]
[344870417,1733847046126,-505.66721782,0.00010958,2]
[344870419,1733847046135,-1123.72,0.00010958,2]
[344870421,1733847046145,-1123.72,0.00010958,2]
[344870423,1733847046155,-1123.72,0.00010958,2]
[344870425,1733847046164,-1123.72,0.00010958,2]
[344870426,1733847046174,-1123.72,0.00010958,2]
[344870428,1733847046184,-1123.72,0.00010958,2]
[344870430,1733847046194,-1123.72,0.00010958,2]
[344870433,1733847046203,-1123.72,0.00010958,2]
[344870434,1733847046213,-1123.72,0.00010958,2]
[344870437,1733847046229,-1123.72,0.00010958,2]
[344870438,1733847046238,-1123.72,0.00010958,2]
[344870441,1733847046248,-1123.72,0.00010958,2]
[344870442,1733847046258,-1123.72,0.00010958,2]
[344870444,1733847046267,-521.54431085,0.00010958,2]
[344870446,1733847046277,-1123.72,0.00010958,2]
[344870449,1733847046287,-1123.72,0.00010958,2]
[344870451,1733847046297,-1123.89223667,0.00010958,2]
[344870453,1733847046307,-500.0,0.00010958,2]
[344870455,1733847046317,-500.0,0.00010958,2]
[344870456,1733847046326,-500.0,0.00010958,2]
[344870458,1733847046336,-378.67492359,0.00010958,2]
[344870463,1733847046370,-121.32507641,0.00010958,2]
[344870465,1733847046380,-500.0,0.00010958,2]
[344870467,1733847046389,-676.99,0.00010958,2]
[344870469,1733847046398,-676.99,0.00010958,2]
[344870471,1733847046407,-676.99,0.00010958,2]
[344870473,1733847046416,-676.99,0.00010958,2]
[344870475,1733847046425,-253.01492359,0.00010958,2]
[344870477,1733847046439,-423.97507641,0.00010958,2]
[344870479,1733847046449,-351.24225959,0.00010958,2]
[344870482,1733847046461,-325.74774041,0.00010958,2]
[344870484,1733847046478,-676.99,0.00010958,2]
[344870486,1733847046488,-501.05357942,0.00010958,2]
[344870488,1733847046499,-676.99,0.00010958,2]
[344870490,1733847046508,-676.99,0.00010958,2]
[344870492,1733847046516,-676.99,0.00010958,2]
[344870494,1733847046526,-676.99,0.00010958,2]
[344870496,1733847046535,-676.99,0.00010958,2]
[344870498,1733847046544,-676.99,0.00010958,2]
[344870500,1733847046553,-676.99,0.00010958,2]
[344870501,1733847046562,-676.99,0.00010958,2]
[344870503,1733847046571,-500.0,0.00010958,2]
[344870506,1733847046581,-500.0,0.00010958,2]
[344870507,1733847046590,-676.99,0.00010958,2]
[344870509,1733847046599,-500.0,0.00010958,2]
[344870511,1733847046609,-676.99,0.00010958,2]
[344870514,1733847046619,-500.0,0.00010958,2]
[344870516,1733847046628,-676.99,0.00010958,2]
[344870517,1733847046638,-500.0,0.00010958,2]
[344870520,1733847046650,-676.99,0.00010958,2]
[344870521,1733847046667,-500.0,0.00010958,2]
[344870524,1733847046678,-676.99,0.00010958,2]
[344870526,1733847046693,-500.0,0.00010958,2]
[344870528,1733847046705,-676.99,0.00010958,2]
[344870529,1733847046719,-500.0,0.00010958,2]
[344870532,1733847046729,-676.99,0.00010958,2]
[344870533,1733847046741,-610.0,0.00010958,2]
[344870535,1733847046755,-676.99,0.00010958,2]
[344870537,1733847046765,-500.0,0.00010958,2]
[344870539,1733847046774,-500.0,0.00010958,2]
[344870541,1733847046783,-677.06428824,0.00010958,2]
[344870543,1733847046793,-500.0,0.00010958,2]
[344870545,1733847046802,-500.0,0.00010958,2]
[344870548,1733847046811,-500.0,0.00010958,2]
[344870550,1733847046821,-500.0,0.00010958,2]
[344870551,1733847046830,-500.0,0.00010958,2]
[344870553,1733847046839,-500.0,0.00010958,2]
[344870556,1733847046849,-500.0,0.00010958,2]
[344870558,1733847046858,-500.0,0.00010958,2]